[Event "Titled Tuesday Blitz May 4 2021"]
[White "Campelo, Leandro Fabricio"]
[Black "Mayeregger, Arnold"]
[WhiteFideId "2103346"]
[BlackFideId "3705226"]
[WhiteElo "2105"]
[BlackElo "1567"]
[Result "1-0"]
[Round "10"]
[TimeControl "180+1"]
[Date "2021.05.04"]
[WhiteClock "0:00:10"]
[BlackClock "0:00:42"]

1. e4 {[%clk 0:03:00]}  c5 {[%clk 0:02:59]} 2. Nf3 {[%clk 0:03:00]}  e6 {[%clk 0:03:00]} 3. d4 {[%clk 0:02:59]}  cxd4 {[%clk 0:03:01]} 4. Nxd4 {[%clk 0:02:59]}  a6 {[%clk 0:03:02]} 5. Nc3 {[%clk 0:02:58]}  Qc7 {[%clk 0:03:02]} 6. Bd3 {[%clk 0:02:57]}  Nf6 {[%clk 0:03:02]} 7. O-O {[%clk 0:02:55]}  Be7 {[%clk 0:03:02]} 8. f4 {[%clk 0:02:54]}  d6 {[%clk 0:02:56]} 9. Kh1 {[%clk 0:02:51]}  O-O {[%clk 0:02:56]} 10. Qf3 {[%clk 0:02:49]}  Nbd7 {[%clk 0:02:54]} 11. Bd2 {[%clk 0:02:49]}  Rb8 {[%clk 0:02:51]} 12. Rae1 {[%clk 0:02:47]}  b5 {[%clk 0:02:51]} 13. a3 {[%clk 0:02:47]}  Bb7 {[%clk 0:02:50]} 14. Qh3 {[%clk 0:02:47]}  Rfd8 {[%clk 0:02:37]} 15. Nxe6 {[%clk 0:02:03]}  fxe6 {[%clk 0:02:31]} 16. Qxe6+ {[%clk 0:02:04]}  Kf8 {[%clk 0:02:32]} 17. e5 {[%clk 0:01:33]}  Nc5 {[%clk 0:02:31]} 18. Qh3 {[%clk 0:01:14]}  Nxd3 {[%clk 0:02:08]} 19. cxd3 {[%clk 0:00:53]}  Nd5 {[%clk 0:02:01]} 20. Qxh7 {[%clk 0:00:37]}  Nxc3 {[%clk 0:01:45]} 21. Bxc3 {[%clk 0:00:25]}  Qc6 {[%clk 0:01:41]} 22. Re2 {[%clk 0:00:22]}  d5 {[%clk 0:01:41]} 23. e6 {[%clk 0:00:22]}  Bf6 {[%clk 0:01:42]} 24. e7+ {[%clk 0:00:19]}  Kf7 {[%clk 0:01:36]} 25. exd8=Q {[%clk 0:00:19]}  Rxd8 {[%clk 0:01:37]} 26. Qh5+ {[%clk 0:00:18]}  Kg8 {[%clk 0:01:34]} 27. Bxf6 {[%clk 0:00:17]}  Qxf6 {[%clk 0:01:33]} 28. Rfe1 {[%clk 0:00:16]}  Bc6 {[%clk 0:01:30]} 29. h3 {[%clk 0:00:16]}  d4 {[%clk 0:01:29]} 30. Re7 {[%clk 0:00:15]}  Qxf4 {[%clk 0:01:22]} 31. Qg4 {[%clk 0:00:15]}  Qh6 {[%clk 0:01:18]} 32. Kh2 {[%clk 0:00:14]}  Qd6+ {[%clk 0:01:17]} 33. Qg3 {[%clk 0:00:13]}  Qf6 {[%clk 0:01:17]} 34. R1e6 {[%clk 0:00:13]}  Qf8 {[%clk 0:01:10]} 35. Qe5 {[%clk 0:00:12]}  Bd5 {[%clk 0:01:03]} 36. Rg6 {[%clk 0:00:13]}  Bf7 {[%clk 0:01:03]} 37. Rg4 {[%clk 0:00:11]}  a5 {[%clk 0:00:55]} 38. Rf4 {[%clk 0:00:11]}  Re8 {[%clk 0:00:45]} 39. Rfxf7 {[%clk 0:00:10]}  Qxf7 {[%clk 0:00:43]} 40. Rxe8+ {[%clk 0:00:11]}  Kh7 {[%clk 0:00:42]} 41. Qe4+ {[%clk 0:00:11]}  g6 {[%clk 0:00:38]} 42. Re7 {[%clk 0:00:10]}  Kg7 {[%clk 0:00:37]} 43. Rxf7+ {[%clk 0:00:10]}  Kxf7 {[%clk 0:00:38]} 44. Qxd4 {[%clk 0:00:10]}  g5 {[%clk 0:00:38]} 45. Qd5+ {[%clk 0:00:10]}  Kg6 {[%clk 0:00:39]} 46. Qxb5 {[%clk 0:00:10]}  Kh5 {[%clk 0:00:40]} 47. d4 {[%clk 0:00:11]}  a4 {[%clk 0:00:40]} 48. d5 {[%clk 0:00:11]}  g4 {[%clk 0:00:41]} 49. d6+ {[%clk 0:00:11]}  Kh4 {[%clk 0:00:42]} 50. g3# {[%clk 0:00:10]} 1-0


[Site "https://www.chess.com"]

[Event "Titled Tuesday Blitz May 4 2021"]
[White "Chernomordik, Pavel"]
[Black "Nazaretyan, Tigran"]
[WhiteFideId "2804530"]
[BlackFideId "24162345"]
[WhiteElo "2299"]
[BlackElo "2276"]
[Result "0-1"]
[Round "10"]
[TimeControl "180+1"]
[Date "2021.05.04"]
[WhiteClock "0:00:32"]
[BlackClock "0:00:37"]

1. e4 {[%clk 0:03:00]}  c5 {[%clk 0:02:59]} 2. Nc3 {[%clk 0:02:59]}  Nc6 {[%clk 0:02:58]} 3. Bb5 {[%clk 0:02:58]}  Nd4 {[%clk 0:02:57]} 4. Bc4 {[%clk 0:02:57]}  e6 {[%clk 0:02:57]} 5. Nge2 {[%clk 0:02:57]}  Qc7 {[%clk 0:02:57]} 6. O-O {[%clk 0:02:55]}  Nf6 {[%clk 0:02:55]} 7. d3 {[%clk 0:02:53]}  a6 {[%clk 0:02:53]} 8. a4 {[%clk 0:02:50]}  Be7 {[%clk 0:02:35]} 9. f4 {[%clk 0:02:45]}  d6 {[%clk 0:02:24]} 10. Be3 {[%clk 0:02:38]}  Nxe2+ {[%clk 0:02:21]} 11. Qxe2 {[%clk 0:02:37]}  b6 {[%clk 0:02:19]} 12. f5 {[%clk 0:02:31]}  O-O {[%clk 0:02:12]} 13. g4 {[%clk 0:02:23]}  h6 {[%clk 0:01:48]} 14. h4 {[%clk 0:02:14]}  d5 {[%clk 0:01:46]} 15. exd5 {[%clk 0:02:11]}  Qg3+ {[%clk 0:01:44]} 16. Qg2 {[%clk 0:01:49]}  Qxe3+ {[%clk 0:01:43]} 17. Rf2 {[%clk 0:01:46]}  Bb7 {[%clk 0:01:36]} 18. g5 {[%clk 0:01:39]}  hxg5 {[%clk 0:01:27]} 19. hxg5 {[%clk 0:01:39]}  Nxd5 {[%clk 0:01:27]} 20. Nxd5 {[%clk 0:01:28]}  Bxd5 {[%clk 0:01:26]} 21. Bxd5 {[%clk 0:01:26]}  exd5 {[%clk 0:01:26]} 22. Qxd5 {[%clk 0:01:23]}  Qxg5+ {[%clk 0:01:23]} 23. Rg2 {[%clk 0:01:21]}  Qe3+ {[%clk 0:01:23]} 24. Kh1 {[%clk 0:01:18]}  Bf6 {[%clk 0:01:16]} 25. Rag1 {[%clk 0:01:11]}  Rad8 {[%clk 0:01:07]} 26. Qc6 {[%clk 0:01:08]}  Qh3+ {[%clk 0:01:02]} 27. Rh2 {[%clk 0:01:07]}  Qxf5 {[%clk 0:01:01]} 28. Qg2 {[%clk 0:01:01]}  Qd5 {[%clk 0:00:59]} 29. Qxd5 {[%clk 0:00:45]}  Rxd5 {[%clk 0:00:56]} 30. Re2 {[%clk 0:00:45]}  Bxb2 {[%clk 0:00:53]} 31. Rb1 {[%clk 0:00:44]}  Bc3 {[%clk 0:00:46]} 32. Rxb6 {[%clk 0:00:42]}  a5 {[%clk 0:00:46]} 33. Kg2 {[%clk 0:00:39]}  g6 {[%clk 0:00:38]} 34. Rb4 {[%clk 0:00:32]}  cxb4 {[%clk 0:00:37]} 0-1


[Site "https://www.chess.com"]

[Event "Titled Tuesday Blitz May 4 2021"]
[White "Christensen, Thomas"]
[Black "Krysa, Leandro"]
[WhiteFideId "1403532"]
[BlackFideId "116807"]
[WhiteElo "2334"]
[BlackElo "2490"]
[Result "0-1"]
[Round "10"]
[TimeControl "180+1"]
[Date "2021.05.04"]
[WhiteClock "0:00:01"]
[BlackClock "0:00:27"]

1. d4 {[%clk 0:03:00]}  Nf6 {[%clk 0:02:59]} 2. Nc3 {[%clk 0:03:00]}  d5 {[%clk 0:02:59]} 3. e4 {[%clk 0:03:00]}  dxe4 {[%clk 0:02:58]} 4. f3 {[%clk 0:03:01]}  exf3 {[%clk 0:02:58]} 5. Nxf3 {[%clk 0:03:01]}  Bf5 {[%clk 0:02:58]} 6. Ne5 {[%clk 0:02:53]}  e6 {[%clk 0:02:58]} 7. g4 {[%clk 0:02:52]}  Bg6 {[%clk 0:02:52]} 8. Qf3 {[%clk 0:02:43]}  c6 {[%clk 0:02:48]} 9. g5 {[%clk 0:02:42]}  Nfd7 {[%clk 0:02:32]} 10. Nxg6 {[%clk 0:02:21]}  hxg6 {[%clk 0:02:31]} 11. Bg2 {[%clk 0:02:15]}  Bd6 {[%clk 0:02:18]} 12. Rf1 {[%clk 0:02:08]}  Qe7 {[%clk 0:02:06]} 13. Bd2 {[%clk 0:01:52]}  Rxh2 {[%clk 0:02:01]} 14. O-O-O {[%clk 0:01:51]}  Na6 {[%clk 0:02:00]} 15. Rh1 {[%clk 0:01:23]}  Rxh1 {[%clk 0:01:56]} 16. Rxh1 {[%clk 0:01:24]}  O-O-O {[%clk 0:01:55]} 17. Ne4 {[%clk 0:00:51]}  Bb8 {[%clk 0:01:39]} 18. Rh7 {[%clk 0:00:43]}  Rg8 {[%clk 0:01:32]} 19. c4 {[%clk 0:00:34]}  Nc7 {[%clk 0:01:13]} 20. b4 {[%clk 0:00:24]}  f5 {[%clk 0:01:00]} 21. Nc5 {[%clk 0:00:19]}  Nxc5 {[%clk 0:00:56]} 22. bxc5 {[%clk 0:00:16]}  Rd8 {[%clk 0:00:55]} 23. Bc3 {[%clk 0:00:14]}  e5 {[%clk 0:00:52]} 24. dxe5 {[%clk 0:00:13]}  Ne6 {[%clk 0:00:53]} 25. Bd2 {[%clk 0:00:11]}  Qxc5 {[%clk 0:00:52]} 26. Rh3 {[%clk 0:00:10]}  Qxc4+ {[%clk 0:00:50]} 27. Kb1 {[%clk 0:00:10]}  Bxe5 {[%clk 0:00:47]} 28. Bc3 {[%clk 0:00:07]}  Bxc3 {[%clk 0:00:38]} 29. Qxc3 {[%clk 0:00:08]}  Qxc3 {[%clk 0:00:35]} 30. Rxc3 {[%clk 0:00:07]}  Rd2 {[%clk 0:00:31]} 31. Bf3 {[%clk 0:00:05]}  Nxg5 {[%clk 0:00:30]} 32. Re3 {[%clk 0:00:02]}  Nxf3 {[%clk 0:00:29]} 33. Rxf3 {[%clk 0:00:03]}  Rd6 {[%clk 0:00:28]} 34. Rh3 {[%clk 0:00:03]}  Kc7 {[%clk 0:00:27]} 35. Rh7 {[%clk 0:00:02]}  Rd7 {[%clk 0:00:27]} 36. Kc2 {[%clk 0:00:02]}  f4 {[%clk 0:00:28]} 37. Rh4 {[%clk 0:00:02]}  Rf7 {[%clk 0:00:25]} 38. Rh2 {[%clk 0:00:01]}  f3 {[%clk 0:00:26]} 39. Rf2 {[%clk 0:00:01]}  g5 {[%clk 0:00:27]} 0-1


[Site "https://www.chess.com"]

[Event "Titled Tuesday Blitz May 4 2021"]
[White "Coelho, Ramyres Santana"]
[Black "Hernandez Jimenez, Alexander Andres"]
[WhiteFideId "2120690"]
[BlackFideId "3900452"]
[WhiteElo "1888"]
[BlackElo "2151"]
[Result "0-1"]
[Round "10"]
[TimeControl "180+1"]
[Date "2021.05.04"]
[WhiteClock "0:00:58"]
[BlackClock "0:00:26"]

1. e4 {[%clk 0:02:59]}  c5 {[%clk 0:02:59]} 2. Nf3 {[%clk 0:02:59]}  d6 {[%clk 0:03:00]} 3. d4 {[%clk 0:02:59]}  cxd4 {[%clk 0:03:00]} 4. Nxd4 {[%clk 0:03:00]}  Nf6 {[%clk 0:03:00]} 5. Nc3 {[%clk 0:03:00]}  a6 {[%clk 0:03:01]} 6. f3 {[%clk 0:03:00]}  e5 {[%clk 0:03:01]} 7. Nb3 {[%clk 0:03:00]}  Be6 {[%clk 0:03:01]} 8. Be3 {[%clk 0:03:01]}  h5 {[%clk 0:02:59]} 9. Qd2 {[%clk 0:03:00]}  Be7 {[%clk 0:02:59]} 10. O-O-O {[%clk 0:03:01]}  Nbd7 {[%clk 0:02:59]} 11. Kb1 {[%clk 0:03:01]}  Rc8 {[%clk 0:02:59]} 12. h4 {[%clk 0:03:01]}  b5 {[%clk 0:02:58]} 13. Nd5 {[%clk 0:03:01]}  Nxd5 {[%clk 0:02:56]} 14. exd5 {[%clk 0:03:02]}  Bf5 {[%clk 0:02:57]} 15. Bd3 {[%clk 0:03:00]}  Bxd3 {[%clk 0:02:56]} 16. Qxd3 {[%clk 0:03:01]}  Bxh4 {[%clk 0:02:44]} 17. Na5 {[%clk 0:02:47]}  Qxa5 {[%clk 0:02:40]} 18. Rxh4 {[%clk 0:02:47]}  g6 {[%clk 0:02:10]} 19. g4 {[%clk 0:02:38]}  Ke7 {[%clk 0:01:46]} 20. gxh5 {[%clk 0:02:37]}  Rxh5 {[%clk 0:01:43]} 21. Rxh5 {[%clk 0:02:36]}  gxh5 {[%clk 0:01:43]} 22. Qf5 {[%clk 0:02:36]}  Rg8 {[%clk 0:01:37]} 23. Bg5+ {[%clk 0:02:29]}  Ke8 {[%clk 0:01:35]} 24. Bd2 {[%clk 0:02:20]}  Qa4 {[%clk 0:01:28]} 25. Qxh5 {[%clk 0:02:16]}  Qc4 {[%clk 0:01:21]} 26. Bg5 {[%clk 0:02:05]}  Qe2 {[%clk 0:01:11]} 27. Rc1 {[%clk 0:02:00]}  Qg2 {[%clk 0:01:09]} 28. Be3 {[%clk 0:01:55]}  Qg6 {[%clk 0:01:02]} 29. Qh1 {[%clk 0:01:50]}  Nf6 {[%clk 0:01:00]} 30. Qd1 {[%clk 0:01:43]}  Qf5 {[%clk 0:00:51]} 31. Ka1 {[%clk 0:01:42]}  Rg3 {[%clk 0:00:42]} 32. c4 {[%clk 0:01:40]}  Qxf3 {[%clk 0:00:38]} 33. Qxf3 {[%clk 0:01:35]}  Rxf3 {[%clk 0:00:38]} 34. Bg5 {[%clk 0:01:36]}  bxc4 {[%clk 0:00:36]} 35. Bxf6 {[%clk 0:01:36]}  Rxf6 {[%clk 0:00:35]} 36. a4 {[%clk 0:01:37]}  Rf4 {[%clk 0:00:34]} 37. Ka2 {[%clk 0:01:36]}  Rd4 {[%clk 0:00:34]} 38. Ka3 {[%clk 0:01:36]}  a5 {[%clk 0:00:32]} 39. Rc3 {[%clk 0:01:20]}  f5 {[%clk 0:00:31]} 40. b3 {[%clk 0:01:14]}  cxb3 {[%clk 0:00:31]} 41. Kxb3 {[%clk 0:01:12]}  Rxd5 {[%clk 0:00:30]} 42. Rc7 {[%clk 0:01:12]}  e4 {[%clk 0:00:29]} 43. Ra7 {[%clk 0:01:03]}  e3 {[%clk 0:00:29]} 44. Kc4 {[%clk 0:01:03]}  Re5 {[%clk 0:00:27]} 45. Ra8+ {[%clk 0:00:59]}  Ke7 {[%clk 0:00:26]} 46. Ra7+ {[%clk 0:00:58]}  Ke6 {[%clk 0:00:26]} 0-1


[Site "https://www.chess.com"]

[Event "Titled Tuesday Blitz May 4 2021"]
[White "Cuevas, Alex"]
[Black "Royal, Shreyas"]
[WhiteFideId "114260"]
[BlackFideId "448869"]
[WhiteElo "2289"]
[BlackElo "1931"]
[Result "1-0"]
[Round "10"]
[TimeControl "180+1"]
[Date "2021.05.04"]
[WhiteClock "0:00:38"]
[BlackClock "0:01:22"]

1. c4 {[%clk 0:02:57]}  Nf6 {[%clk 0:02:59]} 2. Nc3 {[%clk 0:02:55]}  g6 {[%clk 0:03:00]} 3. d4 {[%clk 0:02:53]}  Bg7 {[%clk 0:03:00]} 4. Nf3 {[%clk 0:02:53]}  d6 {[%clk 0:03:00]} 5. e4 {[%clk 0:02:53]}  O-O {[%clk 0:03:01]} 6. Be2 {[%clk 0:02:50]}  e5 {[%clk 0:03:00]} 7. d5 {[%clk 0:02:50]}  a5 {[%clk 0:02:59]} 8. Bg5 {[%clk 0:02:48]}  h6 {[%clk 0:02:56]} 9. Be3 {[%clk 0:02:48]}  Na6 {[%clk 0:02:56]} 10. Nd2 {[%clk 0:02:46]}  Nc5 {[%clk 0:02:53]} 11. Qc2 {[%clk 0:02:46]}  Ng4 {[%clk 0:02:44]} 12. Bxg4 {[%clk 0:02:44]}  Bxg4 {[%clk 0:02:45]} 13. Nb3 {[%clk 0:02:40]}  Nxb3 {[%clk 0:02:43]} 14. Qxb3 {[%clk 0:02:38]}  f5 {[%clk 0:02:41]} 15. f3 {[%clk 0:02:37]}  f4 {[%clk 0:02:39]} 16. Bf2 {[%clk 0:02:36]}  Bd7 {[%clk 0:02:35]} 17. c5 {[%clk 0:02:35]}  a4 {[%clk 0:02:30]} 18. Qc4 {[%clk 0:02:26]}  b5 {[%clk 0:02:27]} 19. Nxb5 {[%clk 0:02:20]}  Rb8 {[%clk 0:02:27]} 20. c6 {[%clk 0:02:10]}  Bc8 {[%clk 0:02:27]} 21. Na7 {[%clk 0:02:02]}  Rxb2 {[%clk 0:02:23]} 22. O-O {[%clk 0:01:56]}  Qg5 {[%clk 0:02:19]} 23. Nxc8 {[%clk 0:01:54]}  Rxc8 {[%clk 0:02:20]} 24. Rab1 {[%clk 0:01:51]}  Rcb8 {[%clk 0:02:13]} 25. Rxb2 {[%clk 0:01:50]}  Rxb2 {[%clk 0:02:13]} 26. Qxa4 {[%clk 0:01:51]}  h5 {[%clk 0:02:12]} 27. Qa7 {[%clk 0:01:44]}  Qd8 {[%clk 0:02:09]} 28. a4 {[%clk 0:01:37]}  g5 {[%clk 0:02:10]} 29. Qa5 {[%clk 0:01:23]}  g4 {[%clk 0:02:06]} 30. Qc3 {[%clk 0:01:19]}  Qb8 {[%clk 0:02:03]} 31. a5 {[%clk 0:01:16]}  Ra2 {[%clk 0:01:42]} 32. Ra1 {[%clk 0:01:02]}  Rxa1+ {[%clk 0:01:41]} 33. Qxa1 {[%clk 0:01:02]}  Bh6 {[%clk 0:01:35]} 34. a6 {[%clk 0:01:00]}  g3 {[%clk 0:01:34]} 35. a7 {[%clk 0:00:47]}  gxf2+ {[%clk 0:01:32]} 36. Kxf2 {[%clk 0:00:41]}  Qa8 {[%clk 0:01:30]} 37. Qa6 {[%clk 0:00:39]}  Bg5 {[%clk 0:01:22]} 38. Qb7 {[%clk 0:00:38]} 1-0


[Site "https://www.chess.com"]

[Event "Titled Tuesday Blitz May 4 2021"]
[White "Daniel, Damian"]
[Black "Lizlov, Alexey"]
[WhiteFideId "1183621"]
[BlackFideId "4179803"]
[WhiteElo "2055"]
[BlackElo "2272"]
[Result "0-1"]
[Round "10"]
[TimeControl "180+1"]
[Date "2021.05.04"]
[WhiteClock "0:00:04"]
[BlackClock "0:00:07"]

1. d4 {[%clk 0:03:00]}  Nf6 {[%clk 0:02:59]} 2. c4 {[%clk 0:03:00]}  g6 {[%clk 0:03:00]} 3. Nc3 {[%clk 0:02:59]}  Bg7 {[%clk 0:03:00]} 4. e4 {[%clk 0:02:59]}  d6 {[%clk 0:03:01]} 5. Nf3 {[%clk 0:02:59]}  O-O {[%clk 0:03:01]} 6. h3 {[%clk 0:03:00]}  c6 {[%clk 0:02:59]} 7. Be3 {[%clk 0:02:51]}  a6 {[%clk 0:02:58]} 8. Be2 {[%clk 0:02:48]}  b5 {[%clk 0:02:58]} 9. e5 {[%clk 0:02:49]}  Nfd7 {[%clk 0:02:54]} 10. exd6 {[%clk 0:02:13]}  exd6 {[%clk 0:02:53]} 11. O-O {[%clk 0:02:13]}  bxc4 {[%clk 0:02:41]} 12. Bxc4 {[%clk 0:02:10]}  Nb6 {[%clk 0:02:41]} 13. Bd3 {[%clk 0:02:04]}  Be6 {[%clk 0:02:33]} 14. Qc2 {[%clk 0:02:00]}  N8d7 {[%clk 0:02:24]} 15. Rac1 {[%clk 0:01:58]}  Nd5 {[%clk 0:02:09]} 16. Bg5 {[%clk 0:01:53]}  f6 {[%clk 0:02:01]} 17. Rfe1 {[%clk 0:01:34]}  Bf7 {[%clk 0:01:37]} 18. Nxd5 {[%clk 0:01:29]}  Bxd5 {[%clk 0:01:29]} 19. Bf4 {[%clk 0:01:29]}  Nb6 {[%clk 0:01:02]} 20. Nd2 {[%clk 0:01:27]}  Qd7 {[%clk 0:00:54]} 21. Nc4 {[%clk 0:01:20]}  Nxc4 {[%clk 0:00:32]} 22. Bxc4 {[%clk 0:01:21]}  f5 {[%clk 0:00:24]} 23. Bxd5+ {[%clk 0:01:14]}  cxd5 {[%clk 0:00:24]} 24. Qc6 {[%clk 0:00:58]}  Qxc6 {[%clk 0:00:22]} 25. Rxc6 {[%clk 0:00:59]}  Bxd4 {[%clk 0:00:22]} 26. b3 {[%clk 0:00:57]}  Rfe8 {[%clk 0:00:20]} 27. Rxe8+ {[%clk 0:00:53]}  Rxe8 {[%clk 0:00:19]} 28. Kf1 {[%clk 0:00:40]}  Be5 {[%clk 0:00:17]} 29. Bd2 {[%clk 0:00:28]}  Ra8 {[%clk 0:00:14]} 30. Ke2 {[%clk 0:00:22]}  Kf7 {[%clk 0:00:13]} 31. Kd3 {[%clk 0:00:21]}  Ke6 {[%clk 0:00:13]} 32. Rc7 {[%clk 0:00:17]}  h5 {[%clk 0:00:11]} 33. f4 {[%clk 0:00:15]}  Bf6 {[%clk 0:00:10]} 34. Be3 {[%clk 0:00:11]}  a5 {[%clk 0:00:10]} 35. Rc6 {[%clk 0:00:11]}  a4 {[%clk 0:00:08]} 36. b4 {[%clk 0:00:11]}  a3 {[%clk 0:00:09]} 37. Bc5 {[%clk 0:00:11]}  Be7 {[%clk 0:00:09]} 38. Bd4 {[%clk 0:00:11]}  Ra4 {[%clk 0:00:08]} 39. Kc3 {[%clk 0:00:11]}  Ra8 {[%clk 0:00:08]} 40. Kb3 {[%clk 0:00:11]}  h4 {[%clk 0:00:07]} 41. b5 {[%clk 0:00:11]}  Rb8 {[%clk 0:00:07]} 42. b6 {[%clk 0:00:11]}  Bd8 {[%clk 0:00:06]} 43. Kxa3 {[%clk 0:00:10]}  Kd7 {[%clk 0:00:05]} 44. Rc2 {[%clk 0:00:10]}  Bxb6 {[%clk 0:00:05]} 45. Bxb6 {[%clk 0:00:09]}  Rxb6 {[%clk 0:00:06]} 46. Rd2 {[%clk 0:00:07]}  Kc6 {[%clk 0:00:05]} 47. Rc2+ {[%clk 0:00:06]}  Kd7 {[%clk 0:00:05]} 48. Rd2 {[%clk 0:00:06]}  Ke6 {[%clk 0:00:05]} 49. Re2+ {[%clk 0:00:05]}  Kf6 {[%clk 0:00:05]} 50. Rd2 {[%clk 0:00:06]}  Rb5 {[%clk 0:00:05]} 51. Ka4 {[%clk 0:00:06]}  Rc5 {[%clk 0:00:05]} 52. Kb4 {[%clk 0:00:07]}  g5 {[%clk 0:00:06]} 53. a4 {[%clk 0:00:06]}  gxf4 {[%clk 0:00:04]} 54. a5 {[%clk 0:00:06]}  Ke5 {[%clk 0:00:04]} 55. a6 {[%clk 0:00:05]}  Rc8 {[%clk 0:00:04]} 56. Kb5 {[%clk 0:00:04]}  Ke4 {[%clk 0:00:04]} 57. Kb6 {[%clk 0:00:02]}  d4 {[%clk 0:00:04]} 58. Kb7 {[%clk 0:00:02]}  Rh8 {[%clk 0:00:04]} 59. a7 {[%clk 0:00:02]}  d3 {[%clk 0:00:04]} 60. a8=Q {[%clk 0:00:02]}  Rxa8 {[%clk 0:00:04]} 61. Kxa8 {[%clk 0:00:03]}  Ke3 {[%clk 0:00:04]} 62. Rd1 {[%clk 0:00:02]}  d2 {[%clk 0:00:03]} 63. Kb7 {[%clk 0:00:02]}  Ke2 {[%clk 0:00:03]} 64. Ra1 {[%clk 0:00:02]}  d1=Q {[%clk 0:00:03]} 65. Rxd1 {[%clk 0:00:03]}  Kxd1 {[%clk 0:00:04]} 66. Kc6 {[%clk 0:00:03]}  Ke2 {[%clk 0:00:04]} 67. Kxd6 {[%clk 0:00:03]}  Kf2 {[%clk 0:00:05]} 68. Ke5 {[%clk 0:00:04]}  Kxg2 {[%clk 0:00:06]} 69. Kxf4 {[%clk 0:00:02]}  Kxh3 {[%clk 0:00:06]} 70. Kf3 {[%clk 0:00:03]}  Kh2 {[%clk 0:00:06]} 71. Kf2 {[%clk 0:00:03]}  h3 {[%clk 0:00:07]} 72. Kf1 {[%clk 0:00:02]}  Kg3 {[%clk 0:00:07]} 73. Kg1 {[%clk 0:00:02]}  f4 {[%clk 0:00:07]} 74. Kh1 {[%clk 0:00:02]}  f3 {[%clk 0:00:08]} 75. Kg1 {[%clk 0:00:03]}  f2+ {[%clk 0:00:08]} 76. Kf1 {[%clk 0:00:04]}  h2 {[%clk 0:00:07]} 0-1


[Site "https://www.chess.com"]

[Event "Titled Tuesday Blitz May 4 2021"]
[White "Diaz Camallonga, Carles"]
[Black "Nitin, S."]
[WhiteFideId "22235256"]
[BlackFideId "5018277"]
[WhiteElo "2438"]
[BlackElo "2431"]
[Result "1-0"]
[Round "10"]
[TimeControl "180+1"]
[Date "2021.05.04"]
[WhiteClock "0:01:53"]
[BlackClock "0:01:08"]

1. e4 {[%clk 0:03:00]}  e5 {[%clk 0:02:59]} 2. Nf3 {[%clk 0:03:01]}  Nc6 {[%clk 0:02:59]} 3. Bb5 {[%clk 0:03:01]}  a6 {[%clk 0:02:59]} 4. Ba4 {[%clk 0:03:02]}  Nf6 {[%clk 0:02:59]} 5. d3 {[%clk 0:03:01]}  b5 {[%clk 0:02:42]} 6. Bb3 {[%clk 0:03:01]}  Be7 {[%clk 0:02:42]} 7. Nc3 {[%clk 0:03:00]}  O-O {[%clk 0:02:41]} 8. a3 {[%clk 0:03:00]}  d6 {[%clk 0:02:38]} 9. Nd5 {[%clk 0:02:59]}  Bg4 {[%clk 0:02:38]} 10. Be3 {[%clk 0:02:58]}  Nb8 {[%clk 0:02:32]} 11. h3 {[%clk 0:02:56]}  Be6 {[%clk 0:02:31]} 12. a4 {[%clk 0:02:37]}  bxa4 {[%clk 0:02:26]} 13. Nxf6+ {[%clk 0:02:32]}  Bxf6 {[%clk 0:02:25]} 14. Bxe6 {[%clk 0:02:32]}  fxe6 {[%clk 0:02:26]} 15. Rxa4 {[%clk 0:02:33]}  Nd7 {[%clk 0:02:26]} 16. Qa1 {[%clk 0:02:31]}  Qc8 {[%clk 0:02:17]} 17. Qa2 {[%clk 0:02:29]}  Nb6 {[%clk 0:02:15]} 18. Ra5 {[%clk 0:02:27]}  d5 {[%clk 0:02:13]} 19. O-O {[%clk 0:02:23]}  Kh8 {[%clk 0:02:12]} 20. Ra1 {[%clk 0:02:21]}  Qb7 {[%clk 0:02:05]} 21. Rxa6 {[%clk 0:02:14]}  dxe4 {[%clk 0:01:54]} 22. Bxb6 {[%clk 0:02:03]}  Rxa6 {[%clk 0:01:30]} 23. Qxa6 {[%clk 0:02:04]}  Qb8 {[%clk 0:01:12]} 24. Ba7 {[%clk 0:01:57]}  Qxb2 {[%clk 0:01:11]} 25. dxe4 {[%clk 0:01:57]}  Qxc2 {[%clk 0:01:08]} 26. Qa4 {[%clk 0:01:53]} 1-0


[Site "https://www.chess.com"]

[Event "Titled Tuesday Blitz May 4 2021"]
[White "DieHardCuban"]
[Black "Ptacnikova, Lenka"]
[BlackFideId "305650"]
[WhiteElo "2405"]
[BlackElo "1984"]
[Result "1-0"]
[Round "10"]
[TimeControl "180+1"]
[Date "2021.05.04"]
[WhiteClock "0:00:10"]
[BlackClock "0:00:02"]

1. d4 {[%clk 0:03:00]}  Nf6 {[%clk 0:02:57]} 2. c4 {[%clk 0:03:00]}  e6 {[%clk 0:02:57]} 3. Nc3 {[%clk 0:03:00]}  d5 {[%clk 0:02:57]} 4. cxd5 {[%clk 0:02:58]}  exd5 {[%clk 0:02:57]} 5. Bg5 {[%clk 0:02:58]}  Be7 {[%clk 0:02:57]} 6. e3 {[%clk 0:02:58]}  O-O {[%clk 0:02:56]} 7. Bd3 {[%clk 0:02:59]}  c6 {[%clk 0:02:53]} 8. Nge2 {[%clk 0:02:58]}  Bg4 {[%clk 0:02:50]} 9. Qc2 {[%clk 0:02:57]}  Nbd7 {[%clk 0:02:48]} 10. Nf4 {[%clk 0:02:26]}  Ne4 {[%clk 0:02:34]} 11. Bxe7 {[%clk 0:02:21]}  Qxe7 {[%clk 0:02:33]} 12. Nxe4 {[%clk 0:02:03]}  dxe4 {[%clk 0:02:33]} 13. Bxe4 {[%clk 0:02:04]}  h6 {[%clk 0:02:02]} 14. O-O {[%clk 0:01:59]}  Rfe8 {[%clk 0:01:58]} 15. Bd3 {[%clk 0:01:57]}  Nf6 {[%clk 0:01:58]} 16. Rfe1 {[%clk 0:01:42]}  Rad8 {[%clk 0:01:58]} 17. Rac1 {[%clk 0:01:40]}  g5 {[%clk 0:01:43]} 18. Ne2 {[%clk 0:01:35]}  Nd5 {[%clk 0:01:38]} 19. Bc4 {[%clk 0:01:05]}  Kg7 {[%clk 0:01:22]} 20. Ng3 {[%clk 0:01:03]}  Qd6 {[%clk 0:01:03]} 21. a3 {[%clk 0:00:41]}  h5 {[%clk 0:00:48]} 22. Be2 {[%clk 0:00:40]}  Ne7 {[%clk 0:00:27]} 23. Qc3 {[%clk 0:00:30]}  f6 {[%clk 0:00:21]} 24. h3 {[%clk 0:00:25]}  Bxe2 {[%clk 0:00:20]} 25. Rxe2 {[%clk 0:00:26]}  h4 {[%clk 0:00:18]} 26. Ne4 {[%clk 0:00:22]}  Qc7 {[%clk 0:00:12]} 27. Nc5 {[%clk 0:00:13]}  Qc8 {[%clk 0:00:10]} 28. Qb3 {[%clk 0:00:13]}  b6 {[%clk 0:00:08]} 29. Ne6+ {[%clk 0:00:12]}  Kg6 {[%clk 0:00:06]} 30. Nxd8 {[%clk 0:00:13]}  Rxd8 {[%clk 0:00:06]} 31. Qc2+ {[%clk 0:00:13]}  Kg7 {[%clk 0:00:05]} 32. Qc3 {[%clk 0:00:13]}  Qd7 {[%clk 0:00:04]} 33. Qc4 {[%clk 0:00:11]}  Qd6 {[%clk 0:00:03]} 34. Rec2 {[%clk 0:00:10]}  Rd7 {[%clk 0:00:02]} 35. b4 {[%clk 0:00:10]} 1-0


[Site "https://www.chess.com"]